[Event "Titled Tuesday Blitz September 21 2021"]
[White "Korchmar, Vasiliy"]
[Black "Moskalenko, Alexander"]
[WhiteFideId "24131750"]
[BlackFideId "4155351"]
[WhiteElo "2370"]
[BlackElo "2515"]
[Result "0-1"]
[Round "03"]
[TimeControl "180+1"]
[Date "2021.09.21"]
[WhiteClock "0:00:01"]
[BlackClock "0:01:13"]

1. e4 {[%clk 0:03:00]}  e5 {[%clk 0:02:55]} 2. Nf3 {[%clk 0:03:00]}  Nc6 {[%clk 0:02:56]} 3. Nc3 {[%clk 0:03:00]}  Nf6 {[%clk 0:02:56]} 4. Bb5 {[%clk 0:03:01]}  Nd4 {[%clk 0:02:55]} 5. O-O {[%clk 0:02:58]}  Nxb5 {[%clk 0:02:45]} 6. Nxb5 {[%clk 0:02:59]}  c6 {[%clk 0:02:46]} 7. Nc3 {[%clk 0:02:59]}  d6 {[%clk 0:02:44]} 8. d4 {[%clk 0:02:58]}  Qc7 {[%clk 0:02:44]} 9. a4 {[%clk 0:02:53]}  Be7 {[%clk 0:02:35]} 10. h3 {[%clk 0:02:53]}  O-O {[%clk 0:02:36]} 11. Re1 {[%clk 0:02:53]}  Re8 {[%clk 0:02:35]} 12. Bg5 {[%clk 0:02:45]}  h6 {[%clk 0:02:32]} 13. Bh4 {[%clk 0:02:44]}  Nd7 {[%clk 0:02:29]} 14. Bxe7 {[%clk 0:02:35]}  Rxe7 {[%clk 0:02:30]} 15. Ne2 {[%clk 0:02:27]}  exd4 {[%clk 0:02:25]} 16. Nexd4 {[%clk 0:02:26]}  Nc5 {[%clk 0:02:25]} 17. Nd2 {[%clk 0:02:16]}  a5 {[%clk 0:02:25]} 18. Qf3 {[%clk 0:02:08]}  Bd7 {[%clk 0:02:25]} 19. N2b3 {[%clk 0:02:06]}  Nxb3 {[%clk 0:02:22]} 20. Nxb3 {[%clk 0:02:04]}  Rae8 {[%clk 0:02:23]} 21. Re3 {[%clk 0:01:58]}  d5 {[%clk 0:02:15]} 22. Rae1 {[%clk 0:01:49]}  Be6 {[%clk 0:02:10]} 23. Nd4 {[%clk 0:01:38]}  dxe4 {[%clk 0:01:59]} 24. Nxe6 {[%clk 0:01:35]}  Rxe6 {[%clk 0:01:56]} 25. Rxe4 {[%clk 0:01:35]}  Qd6 {[%clk 0:01:53]} 26. Rxe6 {[%clk 0:01:27]}  Rxe6 {[%clk 0:01:53]} 27. Rxe6 {[%clk 0:01:27]}  Qxe6 {[%clk 0:01:54]} 28. Qf4 {[%clk 0:01:21]}  Kh7 {[%clk 0:01:43]} 29. b3 {[%clk 0:01:16]}  b5 {[%clk 0:01:42]} 30. h4 {[%clk 0:01:09]}  Qd5 {[%clk 0:01:38]} 31. Kh2 {[%clk 0:01:03]}  g5 {[%clk 0:01:33]} 32. hxg5 {[%clk 0:01:00]}  hxg5 {[%clk 0:01:34]} 33. Qf6 {[%clk 0:00:55]}  bxa4 {[%clk 0:01:33]} 34. bxa4 {[%clk 0:00:54]}  Kg8 {[%clk 0:01:32]} 35. g3 {[%clk 0:00:49]}  Qc5 {[%clk 0:01:29]} 36. c3 {[%clk 0:00:45]}  Kf8 {[%clk 0:01:27]} 37. Kg1 {[%clk 0:00:40]}  Qd5 {[%clk 0:01:26]} 38. Kh2 {[%clk 0:00:36]}  Ke8 {[%clk 0:01:27]} 39. Kg1 {[%clk 0:00:35]}  Kd7 {[%clk 0:01:27]} 40. Kh2 {[%clk 0:00:33]}  Kc7 {[%clk 0:01:26]} 41. Kh3 {[%clk 0:00:23]}  Kb6 {[%clk 0:01:26]} 42. Kg4 {[%clk 0:00:23]}  Qd1+ {[%clk 0:01:13]} 43. Kxg5 {[%clk 0:00:19]}  Qxa4 {[%clk 0:01:14]} 44. Qxf7 {[%clk 0:00:05]}  Qb5+ {[%clk 0:01:14]} 45. Kg6 {[%clk 0:00:03]}  a4 {[%clk 0:01:15]} 46. Qf8 {[%clk 0:00:02]}  Qd3+ {[%clk 0:01:14]} 47. Kg5 {[%clk 0:00:02]}  Qd2+ {[%clk 0:01:13]} 48. f4 {[%clk 0:00:01]}  Qxc3 {[%clk 0:01:13]} 0-1


[Site "https://www.chess.com"]

[Event "Titled Tuesday Blitz September 21 2021"]
[White "Kozak, Adam"]
[Black "Manukyan, Sargis A."]
[WhiteFideId "753246"]
[BlackFideId "13303970"]
[WhiteElo "2448"]
[BlackElo "2187"]
[Result "1-0"]
[Round "03"]
[TimeControl "180+1"]
[Date "2021.09.21"]
[WhiteClock "0:00:28"]
[BlackClock "0:00:05"]

1. Nf3 {[%clk 0:03:00]}  d5 {[%clk 0:02:59]} 2. c4 {[%clk 0:02:58]}  e6 {[%clk 0:02:58]} 3. g3 {[%clk 0:02:56]}  Nf6 {[%clk 0:02:58]} 4. Bg2 {[%clk 0:02:56]}  Be7 {[%clk 0:02:59]} 5. O-O {[%clk 0:02:56]}  O-O {[%clk 0:02:59]} 6. d4 {[%clk 0:02:57]}  dxc4 {[%clk 0:03:00]} 7. Ne5 {[%clk 0:02:53]}  Nc6 {[%clk 0:02:58]} 8. Bxc6 {[%clk 0:02:52]}  bxc6 {[%clk 0:02:58]} 9. Nxc6 {[%clk 0:02:52]}  Qe8 {[%clk 0:02:59]} 10. Nxe7+ {[%clk 0:02:53]}  Qxe7 {[%clk 0:03:00]} 11. Qc2 {[%clk 0:02:53]}  c5 {[%clk 0:02:57]} 12. dxc5 {[%clk 0:02:51]}  Qxc5 {[%clk 0:02:57]} 13. Be3 {[%clk 0:02:46]}  Qc6 {[%clk 0:02:57]} 14. Nd2 {[%clk 0:02:44]}  Bb7 {[%clk 0:02:56]} 15. f3 {[%clk 0:02:45]}  Ng4 {[%clk 0:02:47]} 16. Bd4 {[%clk 0:02:37]}  Rfd8 {[%clk 0:02:44]} 17. Bf2 {[%clk 0:02:34]}  Ne5 {[%clk 0:02:33]} 18. Rfd1 {[%clk 0:02:22]}  Rd7 {[%clk 0:01:55]} 19. Qc3 {[%clk 0:02:19]}  f6 {[%clk 0:01:46]} 20. Ne4 {[%clk 0:02:19]}  Rad8 {[%clk 0:01:31]} 21. Rxd7 {[%clk 0:02:17]}  Rxd7 {[%clk 0:01:17]} 22. Nc5 {[%clk 0:02:17]}  Rd3 {[%clk 0:00:51]} 23. Qb4 {[%clk 0:02:12]}  Ba8 {[%clk 0:00:30]} 24. Nxe6 {[%clk 0:02:05]}  Kf7 {[%clk 0:00:18]} 25. Qc5 {[%clk 0:01:41]}  Nxf3+ {[%clk 0:00:17]} 26. Kf1 {[%clk 0:01:10]}  Nxh2+ {[%clk 0:00:15]} 27. Ke1 {[%clk 0:01:11]}  Qh1+ {[%clk 0:00:14]} 28. Bg1 {[%clk 0:01:11]}  Qg2 {[%clk 0:00:10]} 29. Qf2 {[%clk 0:00:44]}  Qxf2+ {[%clk 0:00:09]} 30. Bxf2 {[%clk 0:00:42]}  Nf3+ {[%clk 0:00:08]} 31. Kf1 {[%clk 0:00:39]}  Rd2 {[%clk 0:00:08]} 32. Nc7 {[%clk 0:00:37]}  Nh2+ {[%clk 0:00:05]} 33. Kg1 {[%clk 0:00:37]}  Be4 {[%clk 0:00:03]} 34. Kxh2 {[%clk 0:00:36]}  Rxe2 {[%clk 0:00:04]} 35. Kg1 {[%clk 0:00:36]}  Rxb2 {[%clk 0:00:04]} 36. a4 {[%clk 0:00:32]}  Bd3 {[%clk 0:00:05]} 37. Nb5 {[%clk 0:00:30]}  Rc2 {[%clk 0:00:04]} 38. Bxa7 {[%clk 0:00:29]}  h5 {[%clk 0:00:04]} 39. Bf2 {[%clk 0:00:28]}  Be4 {[%clk 0:00:05]} 40. a5 {[%clk 0:00:28]}  g5 {[%clk 0:00:05]} 41. Nd6+ {[%clk 0:00:27]}  Ke6 {[%clk 0:00:05]} 42. Nxe4 {[%clk 0:00:28]}  Re2 {[%clk 0:00:05]} 43. Nc5+ {[%clk 0:00:27]}  Kd5 {[%clk 0:00:05]} 44. a6 {[%clk 0:00:28]} 1-0


[Site "https://www.chess.com"]

[Event "Titled Tuesday Blitz September 21 2021"]
[White "Kubatko, Ivan"]
[Black "Manafov, Vugar"]
[WhiteFideId "24111473"]
[BlackFideId "13410814"]
[WhiteElo "2285"]
[BlackElo "2274"]
[Result "0-1"]
[Round "03"]
[TimeControl "180+1"]
[Date "2021.09.21"]
[WhiteClock "0:00:12"]
[BlackClock "0:01:42"]

1. e4 {[%clk 0:03:00]}  Nf6 {[%clk 0:03:00]} 2. e5 {[%clk 0:03:00]}  Nd5 {[%clk 0:03:01]} 3. d4 {[%clk 0:03:00]}  d6 {[%clk 0:03:01]} 4. exd6 {[%clk 0:03:01]}  cxd6 {[%clk 0:03:01]} 5. c4 {[%clk 0:03:01]}  Nb6 {[%clk 0:03:01]} 6. Nc3 {[%clk 0:03:01]}  g6 {[%clk 0:03:02]} 7. Nf3 {[%clk 0:03:00]}  Bg7 {[%clk 0:03:02]} 8. Be2 {[%clk 0:02:58]}  O-O {[%clk 0:03:02]} 9. O-O {[%clk 0:02:58]}  Bg4 {[%clk 0:03:02]} 10. b3 {[%clk 0:02:56]}  Nc6 {[%clk 0:03:02]} 11. Be3 {[%clk 0:02:56]}  d5 {[%clk 0:03:02]} 12. c5 {[%clk 0:02:54]}  Nc8 {[%clk 0:03:02]} 13. h3 {[%clk 0:02:44]}  Bxf3 {[%clk 0:03:02]} 14. Bxf3 {[%clk 0:02:44]}  e6 {[%clk 0:03:03]} 15. a3 {[%clk 0:02:32]}  N8e7 {[%clk 0:03:03]} 16. g4 {[%clk 0:02:07]}  f5 {[%clk 0:03:01]} 17. Ne2 {[%clk 0:01:30]}  fxg4 {[%clk 0:02:57]} 18. Bxg4 {[%clk 0:01:30]}  Nf5 {[%clk 0:02:57]} 19. Nf4 {[%clk 0:01:29]}  Qf6 {[%clk 0:02:32]} 20. Ne2 {[%clk 0:00:46]}  h5 {[%clk 0:02:25]} 21. Bf3 {[%clk 0:00:28]}  Nxe3 {[%clk 0:01:46]} 22. fxe3 {[%clk 0:00:27]}  Qg5+ {[%clk 0:01:47]} 23. Kh1 {[%clk 0:00:14]}  Qxe3 {[%clk 0:01:46]} 24. Bg2 {[%clk 0:00:12]}  Rxf1+ {[%clk 0:01:41]} 25. Qxf1 {[%clk 0:00:12]}  Rf8 {[%clk 0:01:42]} 0-1


[Site "https://www.chess.com"]

[Event "Titled Tuesday Blitz September 21 2021"]
[White "Kwon, Sehyun"]
[Black "Vokhidov, Shamsiddin"]
[WhiteFideId "13203088"]
[BlackFideId "14204223"]
[WhiteElo "1778"]
[BlackElo "2616"]
[Result "0-1"]
[Round "03"]
[TimeControl "180+1"]
[Date "2021.09.21"]
[WhiteClock "0:00:04"]
[BlackClock "0:01:32"]

1. Nf3 {[%clk 0:03:00]}  c5 {[%clk 0:03:00]} 2. e4 {[%clk 0:03:00]}  d6 {[%clk 0:02:59]} 3. Bb5+ {[%clk 0:03:00]}  Nd7 {[%clk 0:02:58]} 4. c3 {[%clk 0:02:57]}  Nf6 {[%clk 0:02:56]} 5. Qe2 {[%clk 0:02:57]}  a6 {[%clk 0:02:57]} 6. Ba4 {[%clk 0:02:58]}  b5 {[%clk 0:02:57]} 7. Bc2 {[%clk 0:02:57]}  Bb7 {[%clk 0:02:57]} 8. d4 {[%clk 0:02:55]}  cxd4 {[%clk 0:02:58]} 9. cxd4 {[%clk 0:02:56]}  Rc8 {[%clk 0:02:58]} 10. a3 {[%clk 0:02:46]}  Bxe4 {[%clk 0:02:54]} 11. Nc3 {[%clk 0:02:39]}  Bxc2 {[%clk 0:02:54]} 12. Qxc2 {[%clk 0:02:40]}  g6 {[%clk 0:02:54]} 13. O-O {[%clk 0:02:40]}  Bg7 {[%clk 0:02:54]} 14. Re1 {[%clk 0:02:41]}  O-O {[%clk 0:02:54]} 15. Bg5 {[%clk 0:02:39]}  Nb6 {[%clk 0:02:51]} 16. Qe2 {[%clk 0:02:32]}  Rc7 {[%clk 0:02:50]} 17. Rad1 {[%clk 0:02:20]}  Nfd5 {[%clk 0:02:42]} 18. Nxd5 {[%clk 0:02:19]}  Nxd5 {[%clk 0:02:43]} 19. Qe4 {[%clk 0:02:19]}  Nf6 {[%clk 0:02:41]} 20. Qd3 {[%clk 0:01:56]}  Qd7 {[%clk 0:02:36]} 21. d5 {[%clk 0:01:52]}  Rfc8 {[%clk 0:02:34]} 22. Qe3 {[%clk 0:01:17]}  h6 {[%clk 0:02:29]} 23. Bxf6 {[%clk 0:01:06]}  exf6 {[%clk 0:02:27]} 24. Nd4 {[%clk 0:01:07]}  f5 {[%clk 0:02:08]} 25. Nc6 {[%clk 0:01:03]}  Kh7 {[%clk 0:02:07]} 26. b4 {[%clk 0:00:58]}  Bf6 {[%clk 0:02:02]} 27. Qb6 {[%clk 0:00:49]}  Ra8 {[%clk 0:02:00]} 28. Re2 {[%clk 0:00:47]}  Rb7 {[%clk 0:01:58]} 29. Qe3 {[%clk 0:00:44]}  Kg7 {[%clk 0:01:52]} 30. Rde1 {[%clk 0:00:42]}  Rc7 {[%clk 0:01:52]} 31. Qb6 {[%clk 0:00:41]}  Rcc8 {[%clk 0:01:52]} 32. g3 {[%clk 0:00:21]}  Re8 {[%clk 0:01:50]} 33. Kf1 {[%clk 0:00:14]}  Bc3 {[%clk 0:01:40]} 34. Rxe8 {[%clk 0:00:09]}  Rxe8 {[%clk 0:01:41]} 35. Rc1 {[%clk 0:00:09]}  f4 {[%clk 0:01:38]} 36. Kg2 {[%clk 0:00:03]}  f3+ {[%clk 0:01:38]} 37. Kxf3 {[%clk 0:00:03]}  Qf5+ {[%clk 0:01:37]} 38. Kg2 {[%clk 0:00:03]}  Qxd5+ {[%clk 0:01:36]} 39. Kg1 {[%clk 0:00:04]}  Re2 {[%clk 0:01:32]} 0-1


[Site "https://www.chess.com"]

[Event "Titled Tuesday Blitz September 21 2021"]
[White "Lashkin, Jegor"]
[Black "Martins, Vinicius Tine"]
[WhiteFideId "13907808"]
[BlackFideId "2112884"]
[WhiteElo "2293"]
[BlackElo "2373"]
[Result "1-0"]
[Round "03"]
[TimeControl "180+1"]
[Date "2021.09.21"]
[WhiteClock "0:00:35"]
[BlackClock "0:00:49"]

1. a3 {[%clk 0:03:00]}  e5 {[%clk 0:02:58]} 2. c4 {[%clk 0:02:59]}  c6 {[%clk 0:02:54]} 3. d4 {[%clk 0:02:58]}  exd4 {[%clk 0:02:54]} 4. Qxd4 {[%clk 0:02:59]}  d5 {[%clk 0:02:54]} 5. e3 {[%clk 0:02:59]}  Nf6 {[%clk 0:02:53]} 6. Nf3 {[%clk 0:02:59]}  Be7 {[%clk 0:02:53]} 7. Be2 {[%clk 0:02:59]}  O-O {[%clk 0:02:53]} 8. O-O {[%clk 0:03:00]}  Be6 {[%clk 0:02:53]} 9. Nbd2 {[%clk 0:02:49]}  c5 {[%clk 0:02:49]} 10. Qc3 {[%clk 0:02:48]}  Nc6 {[%clk 0:02:47]} 11. cxd5 {[%clk 0:02:48]}  Nxd5 {[%clk 0:02:32]} 12. Qc2 {[%clk 0:02:48]}  Rc8 {[%clk 0:02:32]} 13. b3 {[%clk 0:02:47]}  Bf6 {[%clk 0:02:31]} 14. Bb2 {[%clk 0:02:47]}  Bxb2 {[%clk 0:02:21]} 15. Qxb2 {[%clk 0:02:48]}  Qf6 {[%clk 0:02:20]} 16. Qc2 {[%clk 0:02:36]}  Bf5 {[%clk 0:02:03]} 17. Qxc5 {[%clk 0:01:51]}  Nc3 {[%clk 0:01:57]} 18. Rae1 {[%clk 0:01:11]}  Nxe2+ {[%clk 0:01:44]} 19. Rxe2 {[%clk 0:01:10]}  Bd3 {[%clk 0:01:45]} 20. Ree1 {[%clk 0:01:09]}  Bxf1 {[%clk 0:01:35]} 21. Rxf1 {[%clk 0:01:10]}  Rfd8 {[%clk 0:01:34]} 22. Ne4 {[%clk 0:01:07]}  Qe7 {[%clk 0:01:33]} 23. Qf5 {[%clk 0:01:05]}  g6 {[%clk 0:01:27]} 24. Qf4 {[%clk 0:01:03]}  Kg7 {[%clk 0:01:22]} 25. h4 {[%clk 0:01:00]}  h6 {[%clk 0:01:22]} 26. h5 {[%clk 0:00:59]}  g5 {[%clk 0:01:12]} 27. Nfxg5 {[%clk 0:00:34]}  hxg5 {[%clk 0:01:08]} 28. Nxg5 {[%clk 0:00:35]}  Qe5 {[%clk 0:00:50]} 29. Qxf7+ {[%clk 0:00:35]}  Kh6 {[%clk 0:00:49]} 30. Qg6# {[%clk 0:00:35]} 1-0


[Site "https://www.chess.com"]

[Event "Titled Tuesday Blitz September 21 2021"]
[White "Lysyj, Igor"]
[Black "Omariev, Maksim"]
[WhiteFideId "4150120"]
[BlackFideId "4193423"]
[WhiteElo "2660"]
[BlackElo "2453"]
[Result "0-1"]
[Round "03"]
[TimeControl "180+1"]
[Date "2021.09.21"]
[WhiteClock "0:00:01"]
[BlackClock "0:00:03"]

1. d4 {[%clk 0:01:21]}  Nf6 {[%clk 0:02:34]} 2. c4 {[%clk 0:01:19]}  e6 {[%clk 0:02:29]} 3. Nf3 {[%clk 0:01:18]}  d5 {[%clk 0:02:30]} 4. g3 {[%clk 0:01:18]}  Be7 {[%clk 0:02:30]} 5. Bg2 {[%clk 0:01:18]}  O-O {[%clk 0:02:30]} 6. Qb3 {[%clk 0:01:18]}  a6 {[%clk 0:02:28]} 7. Bf4 {[%clk 0:01:17]}  Nc6 {[%clk 0:02:27]} 8. Nbd2 {[%clk 0:01:14]}  Na5 {[%clk 0:02:23]} 9. Qc2 {[%clk 0:01:13]}  Nxc4 {[%clk 0:02:23]} 10. Nxc4 {[%clk 0:01:13]}  dxc4 {[%clk 0:02:24]} 11. Qxc4 {[%clk 0:01:13]}  b5 {[%clk 0:02:19]} 12. Qxc7 {[%clk 0:01:10]}  Qxc7 {[%clk 0:02:12]} 13. Bxc7 {[%clk 0:01:10]}  Bb7 {[%clk 0:02:13]} 14. Ba5 {[%clk 0:01:08]}  Rac8 {[%clk 0:02:11]} 15. O-O {[%clk 0:01:06]}  Rc2 {[%clk 0:02:12]} 16. Ne1 {[%clk 0:01:06]}  Bxg2 {[%clk 0:02:07]} 17. Nxc2 {[%clk 0:01:06]}  Bxf1 {[%clk 0:02:07]} 18. Kxf1 {[%clk 0:01:06]}  Rc8 {[%clk 0:02:08]} 19. Ne3 {[%clk 0:01:05]}  Ne4 {[%clk 0:02:01]} 20. f3 {[%clk 0:01:02]}  Bg5 {[%clk 0:01:56]} 21. fxe4 {[%clk 0:00:52]}  Bxe3 {[%clk 0:01:55]} 22. Rd1 {[%clk 0:00:52]}  Kf8 {[%clk 0:01:46]} 23. Bc3 {[%clk 0:00:50]}  Ke7 {[%clk 0:01:42]} 24. d5 {[%clk 0:00:47]}  f6 {[%clk 0:01:39]} 25. Rd3 {[%clk 0:00:44]}  Bc5 {[%clk 0:01:35]} 26. a3 {[%clk 0:00:44]}  Bd6 {[%clk 0:01:29]} 27. Kg2 {[%clk 0:00:42]}  Rc4 {[%clk 0:01:27]} 28. Kf3 {[%clk 0:00:41]}  h5 {[%clk 0:01:28]} 29. dxe6 {[%clk 0:00:40]}  Kxe6 {[%clk 0:01:25]} 30. h3 {[%clk 0:00:35]}  g5 {[%clk 0:01:24]} 31. g4 {[%clk 0:00:35]}  hxg4+ {[%clk 0:01:19]} 32. hxg4 {[%clk 0:00:36]}  Rc8 {[%clk 0:01:19]} 33. Rd5 {[%clk 0:00:34]}  Rh8 {[%clk 0:01:17]} 34. Rf5 {[%clk 0:00:32]}  Rh3+ {[%clk 0:01:11]} 35. Kf2 {[%clk 0:00:32]}  Rh6 {[%clk 0:00:53]} 36. Kf3 {[%clk 0:00:19]}  Rh3+ {[%clk 0:00:51]} 37. Kf2 {[%clk 0:00:20]}  Rh6 {[%clk 0:00:51]} 38. Rd5 {[%clk 0:00:18]}  Rh2+ {[%clk 0:00:48]} 39. Kf1 {[%clk 0:00:18]}  Rh4 {[%clk 0:00:48]} 40. Bxf6 {[%clk 0:00:17]}  Rxg4 {[%clk 0:00:43]} 41. Bxg5 {[%clk 0:00:17]}  Be5 {[%clk 0:00:42]} 42. Bc1 {[%clk 0:00:16]}  Rxe4 {[%clk 0:00:41]} 43. Rd3 {[%clk 0:00:15]}  Rc4 {[%clk 0:00:38]} 44. Bd2 {[%clk 0:00:11]}  Bxb2 {[%clk 0:00:35]} 45. Rh3 {[%clk 0:00:10]}  Ra4 {[%clk 0:00:31]} 46. Bb4 {[%clk 0:00:10]}  a5 {[%clk 0:00:29]} 47. Bf8 {[%clk 0:00:10]}  Kd5 {[%clk 0:00:29]} 48. Rh5+ {[%clk 0:00:09]}  Kc4 {[%clk 0:00:28]} 49. Rh4+ {[%clk 0:00:09]}  Kb3 {[%clk 0:00:28]} 50. Rh5 {[%clk 0:00:09]}  Rf4+ {[%clk 0:00:24]} 51. Kg2 {[%clk 0:00:07]}  Rxf8 {[%clk 0:00:10]} 52. Rxb5+ {[%clk 0:00:07]}  Kxa3 {[%clk 0:00:09]} 53. Rxa5+ {[%clk 0:00:07]}  Kb4 {[%clk 0:00:10]} 54. Rd5 {[%clk 0:00:07]}  Kc4 {[%clk 0:00:08]} 55. Rd7 {[%clk 0:00:07]}  Bd4 {[%clk 0:00:08]} 56. e4 {[%clk 0:00:06]}  Rf4 {[%clk 0:00:08]} 57. Re7 {[%clk 0:00:07]}  Kd3 {[%clk 0:00:08]} 58. Kg3 {[%clk 0:00:07]}  Rf6 {[%clk 0:00:07]} 59. e5 {[%clk 0:00:07]}  Rf8 {[%clk 0:00:06]} 60. e6 {[%clk 0:00:07]}  Ke4 {[%clk 0:00:06]} 61. Rf7 {[%clk 0:00:08]}  Re8 {[%clk 0:00:06]} 62. e7 {[%clk 0:00:08]}  Bc5 {[%clk 0:00:06]} 63. Rf4+ {[%clk 0:00:08]}  Kd5 {[%clk 0:00:05]} 64. Rf5+ {[%clk 0:00:08]}  Kc6 {[%clk 0:00:05]} 65. Rf6+ {[%clk 0:00:08]}  Kd7 {[%clk 0:00:05]} 66. Ra6 {[%clk 0:00:07]}  Bxe7 {[%clk 0:00:04]} 67. Ra7+ {[%clk 0:00:07]}  Ke6 {[%clk 0:00:05]} 68. Ra6+ {[%clk 0:00:07]}  Kf7 {[%clk 0:00:05]} 69. Kg4 {[%clk 0:00:08]}  Rg8+ {[%clk 0:00:06]} 70. Kf5 {[%clk 0:00:08]}  Rb8 {[%clk 0:00:07]} 71. Ra5 {[%clk 0:00:07]}  Rb6 {[%clk 0:00:07]} 72. Rd5 {[%clk 0:00:07]}  Rh6 {[%clk 0:00:06]} 73. Kg4 {[%clk 0:00:07]}  Rh4+ {[%clk 0:00:06]} 74. Kf5 {[%clk 0:00:06]}  Rh5+ {[%clk 0:00:07]} 75. Ke4 {[%clk 0:00:06]}  Rh1 {[%clk 0:00:07]} 76. Kf5 {[%clk 0:00:06]}  Rf1+ {[%clk 0:00:06]} 77. Kg4 {[%clk 0:00:06]}  Kg6 {[%clk 0:00:05]} 78. Rb5 {[%clk 0:00:05]}  Bd6 {[%clk 0:00:02]} 79. Rb6 {[%clk 0:00:04]}  Rd1 {[%clk 0:00:03]} 80. Rb5 {[%clk 0:00:04]}  Rd4+ {[%clk 0:00:03]} 81. Kf3 {[%clk 0:00:04]}  Kf6 {[%clk 0:00:03]} 82. Rh5 {[%clk 0:00:04]}  Be5 {[%clk 0:00:03]} 83. Rh7 {[%clk 0:00:03]}  Kf5 {[%clk 0:00:03]} 84. Rf7+ {[%clk 0:00:03]}  Ke6 {[%clk 0:00:04]} 85. Rf8 {[%clk 0:00:03]}  Ra4 {[%clk 0:00:03]} 86. Ke2 {[%clk 0:00:03]}  Ra3 {[%clk 0:00:03]} 87. Kf2 {[%clk 0:00:03]}  Kd5 {[%clk 0:00:03]} 88. Kg2 {[%clk 0:00:03]}  Ke4 {[%clk 0:00:04]} 89. Rf2 {[%clk 0:00:04]}  Rg3+ {[%clk 0:00:04]} 90. Kf1 {[%clk 0:00:03]}  Bf4 {[%clk 0:00:04]} 91. Re2+ {[%clk 0:00:03]}  Be3 {[%clk 0:00:05]} 92. Rg2 {[%clk 0:00:03]}  Rh3 {[%clk 0:00:05]} 93. Ke2 {[%clk 0:00:02]}  Rh1 {[%clk 0:00:05]} 94. Rg4+ {[%clk 0:00:02]}  Bf4 {[%clk 0:00:05]} 95. Rg2 {[%clk 0:00:02]}  Ra1 {[%clk 0:00:05]} 96. Kf2 {[%clk 0:00:03]}  Ra2+ {[%clk 0:00:05]} 97. Kf1 {[%clk 0:00:03]}  Ra1+ {[%clk 0:00:05]} 98. Ke2 {[%clk 0:00:03]}  Ra3 {[%clk 0:00:06]} 99. Kf2 {[%clk 0:00:03]}  Rf3+ {[%clk 0:00:05]} 100. Ke2 {[%clk 0:00:03]}  Bg3 {[%clk 0:00:05]} 101. Rg1 {[%clk 0:00:03]}  Re3+ {[%clk 0:00:04]} 102. Kd2 {[%clk 0:00:03]}  Ra3 {[%clk 0:00:05]} 103. Kc2 {[%clk 0:00:03]}  Bf2 {[%clk 0:00:04]} 104. Rg4+ {[%clk 0:00:03]}  Kd5 {[%clk 0:00:04]} 105. Rg8 {[%clk 0:00:04]}  Bd4 {[%clk 0:00:04]} 106. Rd8+ {[%clk 0:00:03]}  Kc4 {[%clk 0:00:04]} 107. Rc8+ {[%clk 0:00:04]}  Bc5 {[%clk 0:00:05]} 108. Kc1 {[%clk 0:00:04]}  Ra2 {[%clk 0:00:05]} 109. Rc7 {[%clk 0:00:03]}  Rh2 {[%clk 0:00:05]} 110. Rc8 {[%clk 0:00:02]}  Kb4 {[%clk 0:00:06]} 111. Rc7 {[%clk 0:00:02]}  Bd4 {[%clk 0:00:05]} 112. Kd1 {[%clk 0:00:02]}  Bc3 {[%clk 0:00:05]} 113. Rc8 {[%clk 0:00:01]}  Kb3 {[%clk 0:00:05]} 114. Rc7 {[%clk 0:00:01]}  Rd2+ {[%clk 0:00:03]} 0-1


[Site "https://www.chess.com"]

[Event "Titled Tuesday Blitz September 21 2021"]
[White "Murzin, Volodar"]
[Black "Dong, Bao Nghia"]
[WhiteFideId "44155573"]
[BlackFideId "12400343"]
[WhiteElo "2514"]
[BlackElo "2414"]
[Result "1-0"]
[Round "03"]
[TimeControl "180+1"]
[Date "2021.09.21"]
[WhiteClock "0:00:09"]
[BlackClock "0:00:13"]

1. e4 {[%clk 0:03:00]}  e6 {[%clk 0:03:00]} 2. d4 {[%clk 0:02:57]}  d5 {[%clk 0:03:00]} 3. Nc3 {[%clk 0:02:57]}  dxe4 {[%clk 0:03:00]} 4. Nxe4 {[%clk 0:02:55]}  Bd7 {[%clk 0:03:01]} 5. Nf3 {[%clk 0:02:55]}  Bc6 {[%clk 0:03:01]} 6. Bd3 {[%clk 0:02:55]}  Nd7 {[%clk 0:03:02]} 7. O-O {[%clk 0:02:53]}  Ngf6 {[%clk 0:03:02]} 8. Nxf6+ {[%clk 0:02:51]}  Qxf6 {[%clk 0:03:02]} 9. Re1 {[%clk 0:02:41]}  h6 {[%clk 0:03:01]} 10. c3 {[%clk 0:02:25]}  Bd6 {[%clk 0:02:57]} 11. Nd2 {[%clk 0:02:21]}  O-O {[%clk 0:02:18]} 12. Ne4 {[%clk 0:02:18]}  Qg6 {[%clk 0:02:17]} 13. Ng3 {[%clk 0:01:38]}  Qf6 {[%clk 0:02:10]} 14. Qg4 {[%clk 0:01:34]}  Bxg3 {[%clk 0:01:56]} 15. Qxg3 {[%clk 0:01:31]}  Rac8 {[%clk 0:01:53]} 16. Bf4 {[%clk 0:01:28]}  Rfe8 {[%clk 0:01:26]} 17. Bxc7 {[%clk 0:01:23]}  a6 {[%clk 0:01:14]} 18. Bf4 {[%clk 0:01:15]}  g5 {[%clk 0:01:10]} 19. Bd2 {[%clk 0:01:07]}  e5 {[%clk 0:01:11]} 20. h4 {[%clk 0:01:03]}  e4 {[%clk 0:00:54]} 21. hxg5 {[%clk 0:01:01]}  hxg5 {[%clk 0:00:54]} 22. Bxg5 {[%clk 0:01:01]}  Qg7 {[%clk 0:00:54]} 23. Bc2 {[%clk 0:00:52]}  Re6 {[%clk 0:00:54]} 24. Be3 {[%clk 0:00:20]}  Rg6 {[%clk 0:00:54]} 25. Qh3 {[%clk 0:00:18]}  Re8 {[%clk 0:00:51]} 26. Rad1 {[%clk 0:00:15]}  Nf6 {[%clk 0:00:51]} 27. c4 {[%clk 0:00:14]}  Bd7 {[%clk 0:00:50]} 28. Qh1 {[%clk 0:00:11]}  Bg4 {[%clk 0:00:49]} 29. Kf1 {[%clk 0:00:09]}  Bxd1 {[%clk 0:00:44]} 30. Bxd1 {[%clk 0:00:09]}  Ng4 {[%clk 0:00:45]} 31. Bxg4 {[%clk 0:00:07]}  Rxg4 {[%clk 0:00:45]} 32. g3 {[%clk 0:00:07]}  Qf6 {[%clk 0:00:36]} 33. Ke2 {[%clk 0:00:06]}  Kg7 {[%clk 0:00:35]} 34. Kd2 {[%clk 0:00:03]}  Rh8 {[%clk 0:00:34]} 35. Qg2 {[%clk 0:00:03]}  Qb6 {[%clk 0:00:31]} 36. Kc2 {[%clk 0:00:02]}  Qb4 {[%clk 0:00:29]} 37. Qf1 {[%clk 0:00:03]}  Rc8 {[%clk 0:00:25]} 38. b3 {[%clk 0:00:02]}  b5 {[%clk 0:00:23]} 39. c5 {[%clk 0:00:03]}  a5 {[%clk 0:00:23]} 40. Qe2 {[%clk 0:00:03]}  Rg6 {[%clk 0:00:22]} 41. Qd2 {[%clk 0:00:03]}  Qa3 {[%clk 0:00:19]} 42. Kb1 {[%clk 0:00:03]}  a4 {[%clk 0:00:19]} 43. b4 {[%clk 0:00:03]}  Rf6 {[%clk 0:00:11]} 44. d5 {[%clk 0:00:03]}  Rf3 {[%clk 0:00:11]} 45. d6 {[%clk 0:00:04]}  Qd3+ {[%clk 0:00:11]} 46. Qxd3 {[%clk 0:00:04]}  exd3 {[%clk 0:00:12]} 47. Kc1 {[%clk 0:00:04]}  Rf5 {[%clk 0:00:08]} 48. Kd2 {[%clk 0:00:05]}  Rd5 {[%clk 0:00:09]} 49. Rh1 {[%clk 0:00:05]}  Kg6 {[%clk 0:00:09]} 50. Rh6+ {[%clk 0:00:04]}  Kg7 {[%clk 0:00:10]} 51. Rh4 {[%clk 0:00:04]}  f5 {[%clk 0:00:10]} 52. Rd4 {[%clk 0:00:04]}  Rxd4 {[%clk 0:00:10]} 53. Bxd4+ {[%clk 0:00:05]}  Kf7 {[%clk 0:00:11]} 54. d7 {[%clk 0:00:06]}  Rd8 {[%clk 0:00:10]} 55. c6 {[%clk 0:00:06]}  Ke6 {[%clk 0:00:11]} 56. Bb6 {[%clk 0:00:06]}  Rh8 {[%clk 0:00:10]} 57. d8=Q {[%clk 0:00:07]}  Rxd8 {[%clk 0:00:10]} 58. Bxd8 {[%clk 0:00:08]}  Kd6 {[%clk 0:00:11]} 59. Kxd3 {[%clk 0:00:08]}  Kxc6 {[%clk 0:00:12]} 60. Kd4 {[%clk 0:00:09]}  Kd6 {[%clk 0:00:12]} 61. Bg5 {[%clk 0:00:09]}  Ke6 {[%clk 0:00:13]} 62. Kc5 {[%clk 0:00:09]} 1-0


[Site "https://www.chess.com"]